Cogmind - Beta 16 @@@ ROGUE MODE // 2025.11.05 @ 15:14:30 Player: Demo Result: Destroyed by Striker with Plasma Lance Performance ------------- Evolutions (8) 4000 Regions Visited (14) 2800 Robots Destroyed (123) 615 Value Destroyed (7054) 7054 Prototype IDs (133) 2660 Alien Tech Used (5) 1000 Bonus (6199) 6199 TOTAL SCORE: 24328 Bonus ------- High Alert Combat Kills 2176 Follower Combat Kills 495 Registered with UFD 300 Met Optimus in HQ 500 Met Zhirov 300 Acquired SGEMP 2000 Met Optimus at Protoforge 1000 Friendly Fire -572 Cogmind --------- Core Integrity 0/1450 Matter 300/300 Energy 600/600 System Corruption 47% Temperature Cool (0) Movement Walking (113) Location -2/Protoforge Parts ------- > --- POWER (2) -------- Improved Quantum Reactor Improved Quantum Reactor > --- PROPULSION (8) --- Overtuned Armored Exoskeleton Overtuned Armored Exoskeleton Enhanced Biometal Leg Enhanced Biometal Leg > --- UTILITY (11) ----- 0bPrime Scrap Suit Plexus Tether Experimental Optical Array Experimental Targeting Computer Experimental Core Analyzer Experimental Core Analyzer Improved Armor Integrity Analyzer Experimental Kinecellerator Centrium Heavy Armor Plating > --- WEAPON (2) ------- Helical Railgun Concept XC Strikerail > --- INVENTORY (5) ---- Improved Quantum Reactor Enhanced Force Lance SGEMP Prototype Peak State ------------ > --- POWER ------------ Improved Quantum Reactor Improved Quantum Reactor > --- PROPULSION ------- Overtuned Flexi-carbon Leg Overtuned Armored Exoskeleton Experimental Biometal Leg Experimental Biometal Leg Experimental Biometal Leg Experimental VSS Leg > --- UTILITY ---------- 0bPrime Scrap Suit Experimental Cooling System Plexus Tether Experimental Optical Array Experimental Core Analyzer Experimental Kinecellerator Experimental Reaction Control System Centrium Light Armor Plating Centrium Heavy Armor Plating > --- WEAPON ----------- Concept XC Strikerail Concept XC Strikerail > --- INVENTORY -------- Experimental Kinecellerator Concept XC Strikerail Enhanced Force Lance SGEMP Prototype [Rating: 216] Favorites ----------- Power Antimatter Reactor Power Core Neutrino Core Reactor Antimatter Reactor Propulsion Improved Antigrav System Treads Light Treads Leg Overtuned Armored Exoskeleton Hover Unit Improved Antigrav System Flight Unit Impulse Thruster Array Utility Advanced System Shield Device Microactuators Storage Medium Storage Unit Processor Experimental Melee Analysis Suite Hackware Advanced System Shield Protection Centrium Heavy Armor Plating Weapon Concept XC Strikerail Energy Gun Small Laser Energy Cannon Core Cannon Ballistic Gun Concept XC Strikerail Ballistic Cannon Mass Driver Launcher Micro-nuke Launcher Special Weapon CPS Tube Impact Weapon Great Maul Slashing Weapon Sigix Broadsword Piercing Weapon Enhanced Force Lance Build | -11 -10 -10 -7 -5 -4 -4 -4 -4 -3 -3 -3 -2 -2 -2 ------- Run | Yrd Mat Sub Scr Fac Fac Upp Upp Zhi Pro Res Qua Res Tes Frg Slots Evolved 16 | . . . . 10 2 . . . . 2 . 2 . . Power 1 | . . . . 1 . . . . . . . . . . Propulsion 6 | . . . . 4 2 . . . . . . . . . Utility 9 | . . . . 5 . . . . . 2 . 2 . . Weapon . | . . . . . . . . . . . . . . . Parts Attached 164 | 2 2 . . 6 18 8 4 6 . 11 11 4 40 52 Power 18 | . . . . . 2 2 . . . 2 1 . 3 8 Engine . | . . . . . . . . . . . . . . . Core 4 | . . . . . 2 1 . . . . . . 1 . Reactor 14 | . . . . . . 1 . . . 2 1 . 2 8 Propulsion 41 | 2 . . . 3 3 3 . 3 . 2 1 . 10 14 Treads 2 | 2 . . . . . . . . . . . . . . Leg 14 | . . . . 2 . . . . . . . . . 12 Wheel . | . . . . . . . . . . . . . . . Hover 13 | . . . . 1 2 . . . . . . . 10 . Flight 12 | . . . . . 1 3 . 3 . 2 1 . . 2 Utility 78 | . . . . . 10 2 1 3 . 7 5 4 21 25 Device 38 | . . . . . 6 2 . 2 . 3 5 . 10 10 Storage 4 | . . . . . . . . . . 1 . . 3 . Processor 20 | . . . . . 2 . 1 . . 1 . 2 6 8 Hackware 4 | . . . . . 2 . . . . 2 . . . . Protection 12 | . . . . . . . . 1 . . . 2 2 7 Artifact . | . . . . . . . . . . . . . . . Weapon 27 | . 2 . . 3 3 1 3 . . . 4 . 6 5 Energy Gun 5 | . 2 . . 2 . . . . . . . . 1 . Energy Cannon 1 | . . . . . . . . . . . 1 . . . Ballistic Gun 7 | . . . . . . . 1 . . . . . 2 4 Ballistic Cannon 2 | . . . . . . 1 . . . . . . 1 . Launcher 1 | . . . . . 1 . . . . . . . . . Special Weapon 2 | . . . . . 2 . . . . . . . . . Impact Weapon 1 | . . . . 1 . . . . . . . . . . Slashing Weapon 7 | . . . . . . . 2 . . . 3 . 2 . Piercing Weapon 1 | . . . . . . . . . . . . . . 1 Special Melee Weapon . | . . . . . . . . . . . . . . . Unidentified Prototypes 37 | . . . . 1 3 . . 4 . 4 5 . 18 2 Corrupted Parts 4 | . . . . . . . . . . . . . . 4 System Corruption 30 | . . . . . . . . . . . . . . 30 Parts Lost 53 | . . . . 8 9 2 . . . 3 . 1 10 20 Power 4 | . . . . . 1 1 . . . . . . 1 1 Propulsion 20 | . . . . 5 2 1 . . . . . . 2 10 Utility 19 | . . . . . 3 . . . . 3 . 1 6 6 Weapon 10 | . . . . 3 3 . . . . . . . 1 3 Highest Loss Streak 9 | . . . . 4 3 3 . . . 3 . 1 2 9 To Critical Strikes 2 | . . . . . . . . . . . . . 1 1 Average Backups 3 | . 2 4 4 5 3 3 4 3 4 3 3 3 3 3 Power . | . . . . . . . . . . . . . . . Propulsion . | . . . . . . . . . . . . . . . Utility 1 | . . . . . 1 1 2 1 2 1 1 1 1 . Weapon 1 | . 2 4 3 3 2 2 2 1 1 1 1 1 1 2 Tool/Special . | . . . . . . . . . . . . . . . Unused Backups 12 | . 1 . 1 2 1 . . 1 . . 2 . 2 2 Power . | . . . . . . . . . . . . . . . Propulsion . | . . . . . . . . . . . . . . . Utility 4 | . . . . . . . . 1 . . . . 2 1 Weapon 8 | . 1 . 1 2 1 . . . . . 2 . . 1 Tool/Special . | . . . . . . . . . . . . . . . Average Slot Usage (%) 69 | . 45 57 57 23 39 54 66 81 89 88 83 80 83 71 Reactor 5 | . . . . . . 4 5 5 5 6 8 8 7 7 Treads 3 | . 28 28 28 6 . . . . . . . . . . Leg 4 | . . . . 4 . . . . . . . . . 13 Hover 4 | . . . . 1 5 . . . . . . . 11 5 Flight 8 | . . . . . 1 10 15 23 31 28 25 21 12 1 Device 13 | . . . . . 15 18 21 21 21 23 25 25 19 8 Processor 9 | . . . . . 3 5 5 5 5 4 6 7 14 15 Hackware 5 | . . . . . 5 10 10 8 5 8 9 8 8 2 Protection 3 | . . . . . . . . 1 5 1 . 3 2 7 Energy Gun 2 | . 17 28 28 8 . . . . . . . . . . Ballistic Gun 1 | . . . . . . . . . . . . . . 5 Slashing Weapon 2 | . . . . . . . 2 10 10 9 5 4 3 . Peak Build Rating 216 | 2 4 4 4 24 76 78 79 107 107 149 167 174 191 216 Average Rating 127 | 1 3 4 4 11 49 64 73 91 107 130 152 172 174 179 On Entrance 72 | . 2 4 4 4 2 54 72 77 107 107 143 164 170 182 Avg Prop Armor Cover (%) 15 | 39 34 29 29 30 11 9 . . . . . . 2 6 Naked Turns 50 | . . . . 38 12 . . . . . . . . . Heaviest Build 93 | . 2 2 2 2 24 34 40 44 44 48 60 67 64 93 Greatest Support 240 | 3 3 3 3 3 28 40 40 58 58 74 69 75 104 240 Greatest Overweight (x) 1 | . . . . . . 1 . . . . . . 1 1 Average Overweight (x) . | . . . . . . . . . . . . . . . Largest Inventory Capacity 10 | 5 5 5 5 5 5 5 5 5 5 5 5 5 10 10 Average Capacity 5 | 5 5 5 5 5 5 5 5 5 5 5 5 5 6 5 Most Carried 10 | . 5 4 5 5 5 5 5 5 5 5 5 5 10 10 Average Carried 5 | . 2 4 4 4 4 4 5 4 5 4 4 5 6 5 Final Capacity 10 | 5 5 5 5 5 5 5 5 5 5 5 5 5 10 5 Final Carried 8 | . 4 4 5 5 5 5 5 5 5 5 5 5 8 4 Scrap Suit Usage (%) 17 | . . . . . . . . . . . . . . 53 Parts Cannibalized 13 | . . . . . . . . . . . . . . 13 Class Distribution -------------------- 21% | Mutant 15% | Scavenger-Scrapper 15% | Hacker-Sprinter 11% | Scavenger-Gladiator 10% | Scavenger-Mutant 8% | Hacker-Mutant 8% | Scavenger-Sprinter 6% | Derelict-Sprinter Dominant Class ---------------- Mutant | -10/Materials Mutant | -10/Subcaves Mutant | -7/Scraptown Mutant | -5/Factory Mutant | -4/Factory Hacker-Mutant | -4/Upper Caves Hacker-Mutant | -4/Upper Caves Derelict-Sprinter | -4/Zhirov Derelict-Sprinter | -3/Proximity Caves Derelict-Sprinter | -3/Research Hacker-Sprinter | -3/Quarantine Hacker-Sprinter | -2/Research Scavenger-Gladiator | -2/Testing Scavenger-Scrapper | -2/Protoforge Resources | -11 -10 -10 -7 -5 -4 -4 -4 -4 -3 -3 -3 -2 -2 -2 ----------- Run | Yrd Mat Sub Scr Fac Fac Upp Upp Zhi Pro Res Qua Res Tes Frg Matter Collected 3680 | 159 81 . . 36 . 257 105 109 5 60 238 . 736 1894 Remotely . | . . . . . . . . . . . . . . . Salvage Created 6500 | . 87 . . 149 61 . 82 318 . 105 273 . 2496 2929 Parts 291 | . 7 . . 12 8 . 4 1 . 2 9 . 104 144 Haulers Intercepted 3 | . 1 . . . . . . . . . 1 . 1 . Recyclers Shooed 1 | . . . . . . . . . . . 1 . . . Parts Field Recycled . | . . . . . . . . . . . . . . . Retrieved Matter . | . . . . . . . . . . . . . . . Parts Self-Destructed 11 | . . 4 . . . 6 . 1 . . . . . . Prevented . | . . . . . . . . . . . . . . . Parts Restored . | . . . . . . . . . . . . . . . Kills | -11 -10 -10 -7 -5 -4 -4 -4 -4 -3 -3 -3 -2 -2 -2 ------- Run | Yrd Mat Sub Scr Fac Fac Upp Upp Zhi Pro Res Qua Res Tes Frg Combat Hostiles Destroyed 92 | . . . . 4 9 . . . . . . . 24 55 Melee 34 | . . . . . . . . . . . . . 23 11 Guns 44 | . . . . . . . . . . . . . . 44 Cannons 1 | . . . . . . . . . . . . . 1 . AOE 13 | . . . . 4 9 . . . . . . . . . Classes Destroyed 23 | . 3 . . 3 1 . 1 . . 1 1 . 5 8 Worker 4 | . . . . 1 . . . . . . . . 3 . Builder 5 | . 1 . . 3 . . . . . . . . 1 . Tunneler 1 | . 1 . . . . . . . . . . . . . Hauler 3 | . 1 . . . . . . . . . 1 . 1 . Recycler 3 | . . . . . . . . . . 1 1 . 1 . Operator 5 | . . . . . . . . . . . 2 . 1 2 Drone 13 | . . . . . . . . . . . . . . 13 Watcher 3 | . . . . 1 . . . . . . . . 2 . Swarmer 16 | . . . . . 9 . . . . . . . . 7 Saboteur 3 | . . . . . . . . . . . . . . 3 Grunt 15 | . . . . 4 . . . . . . . . 8 3 Brawler 3 | . . . . . . . . . . . . . 1 2 Protector 1 | . . . . . . . . . . . . . . 1 Researcher 5 | . . . . . . . . . . . . . 5 . Demolisher 1 | . . . . . . . . . . . . . . 1 Specialist 2 | . . . . . . . . . . . . . . 2 Hunter 5 | . . . . . . . . . . . . . 3 2 Programmer 11 | . . . . . . . . . . . . . 8 3 Hotshot 5 | . . . . . . . . . . . . . . 5 Decapitator 2 | . . . . . . . . . . . . . . 2 Striker 12 | . . . . . . . . . . . . . 2 10 Executioner 1 | . . . . . . . . . . . . . . 1 Alpha 7 2 | . . . . . . . . . . . . . 2 . Elite 1 | . . . . . . . . . . . . . . 1 Savage 1 | . . . . . . . 1 . . . . . . . Best Kill Streak 9 | . 2 . . 9 9 . . . . 1 2 . 4 7 Combat Bots Only 9 | . . . . 4 9 . . . . . . . 4 7 Max Kills in Single Turn 4 | . 2 . . 4 4 . 1 . . 1 1 . 1 2 Gunslinging 1 | . . . . . . . . . . . . . . 1 Exploded 4 | . . . . 4 4 . . . . . . . . . Melee 1 | . . . . . . . . . . . . . 1 1 Uniques/NPCs Destroyed . | . . . . . . . . . . . . . . . Combat | -11 -10 -10 -7 -5 -4 -4 -4 -4 -3 -3 -3 -2 -2 -2 -------- Run | Yrd Mat Sub Scr Fac Fac Upp Upp Zhi Pro Res Qua Res Tes Frg Hostile Shots Fired 1044 | . . . . 104 127 9 . . 7 44 72 5 206 470 Missed 468 | . . . . 43 55 5 . . 6 25 42 . 83 209 Hits 576 | . . . . 61 72 4 . . 1 19 30 5 123 261 Melee 12 | . . . . 1 . . . . . . . 1 4 6 Projectile 564 | . . . . 60 72 4 . . 1 19 30 4 119 255 AOE 4 | . . . . . . . . . . . . . . 4 Critical Strikes 37 | . . . . 4 4 . . . . . 1 1 10 17 Actively Blocked 5 | . . . . . 4 . . . . . . . 1 . Part Disruptions 3 | . . . . . . . . . . . . . 2 1 Damage Taken 13390 | . . . . 1247 1470 59 . . 25 319 361 72 2551 7286 Core 2703 | . . . . 683 504 16 . . 15 71 77 . 157 1180 Absorbed by Shields 414 | . . . . . . . . . . . 174 . 240 . Redirected to Shielding 146 | . . . . . . . . . 10 . . . 127 9 Ignored by Resistances 396 | . . . . . . . . . . 135 223 . 23 15 Regen/Repaired (Parts) 1874 | . . . . . . . . . . . 6 185 1126 557 Core Remaining (%) 74 | 100 . . 100 31 . . . . 53 . 88 . . . Volleys Fired 144 | . 5 . . 5 4 . . . . . . . 4 126 Largest 2 | . 2 . . 2 1 . . . . . . . 1 2 Hottest 300 | . 80 . . 94 49 . . . . . . . 300 70 Shots Fired 237 | . 10 . . 7 4 . . . . . . . 4 212 Gun 229 | . 10 . . 7 . . . . . . . . . 212 Cannon 4 | . . . . . . . . . . . . . 4 . Launcher 4 | . . . . . 4 . . . . . . . . . Special . | . . . . . . . . . . . . . . . Kinetic 212 | . . . . . . . . . . . . . . 212 Thermal 21 | . 10 . . 7 . . . . . . . . 4 . Explosive 4 | . . . . . 4 . . . . . . . . . Electromagnetic . | . . . . . . . . . . . . . . . Robot Hit Streak 47 | . 6 . . . 1 . . . . . . . 4 47 Robot Miss Streak 3 | . 2 . . . 3 . . . . . . . . 2 Penetration Max 2 | . . . . . . . . . . . . . 2 2 Secondary Targets 7 | . . . . . . . . . . . . . . 7 Max Gunslinging Chain 1 | . . . . . . . . . . . . . . 1 Shots Hit Robots 337 | . 6 . . . 3 . 2 11 . 4 6 . 95 210 Core Hits 167 | . 4 . . 10 12 . 2 3 . 1 4 . 36 95 Critical Kills 6 | . . . . . . . . . . . . . . 6 Critical Parts Destroyed 18 | . . . . . . . . . . . . . 7 11 Critical Strikes 38 | . . . . . . . . . . . . . 19 19 Destroy 24 | . . . . . . . . . . . . . 7 17 Sever 13 | . . . . . . . . . . . . . 12 1 Impale 1 | . . . . . . . . . . . . . . 1 Melee Attacks 236 | . . . . 1 13 . 3 12 3 15 19 2 123 45 Impact 14 | . . . . 1 13 . . . . . . . . . Slashing 215 | . . . . . . . 3 12 3 15 19 2 123 38 Piercing 7 | . . . . . . . . . . . . . . 7 Sneak Attacks 27 | . . . . . . . 2 . . 2 2 . 11 10 Combat Hostiles 3 | . . . . . . . . . . . . . 1 2 Follow-up Attacks 5 | . . . . . . . . 3 . 1 1 . . . Damage Inflicted 25503 | . 77 . . 1373 1099 . 120 873 . 285 497 . 10488 10691 Guns 7909 | . 77 . . . . . . . . . . . . 7832 Cannons 1465 | . . . . . . . . . . . . . 1465 . Explosions 2333 | . . . . 1361 972 . . . . . . . . . Melee 13742 | . . . . . 87 . 120 873 . 285 497 . 9023 2857 Ramming 54 | . . . . 12 40 . . . . . . . . 2 Kinetic 7832 | . . . . . . . . . . . . . . 7832 Thermal 1542 | . 77 . . . . . . . . . . . 1465 . Explosive 2333 | . . . . 1361 972 . . . . . . . . . Electromagnetic . | . . . . . . . . . . . . . . . Impact 87 | . . . . . 87 . . . . . . . . . Slashing 12960 | . . . . . . . 120 873 . 285 497 . 9023 2162 Piercing 695 | . . . . . . . . . . . . . . 695 Highest Corruption 47 | . . . . . 3 3 3 3 3 . . . 10 47 Average Corruption 20 | . . . . . 2 3 3 3 3 . . . 6 36 Corruption Purged 5 | . . . . . . . . . . . . . . 5 Corruption Blocked . | . . . . . . . . . . . . . . . Effects 174 | . . . . . 1 7 6 3 1 . . . 31 125 Message Errors 37 | . . . . . 1 3 3 3 . . . . 6 21 Matter Fused 29 | . . . . . . 1 1 . 1 . . . 10 16 Heat Flow Errors 15 | . . . . . . 2 1 . . . . . 4 8 Energy Discharges 16 | . . . . . . 1 . . . . . . 1 14 Parts Rejected 7 | . . . . . . . . . . . . . 1 6 Parts Fused 1 | . . . . . . . . . . . . . 1 . Data Loss (minor) 15 | . . . . . . . 1 . . . . . 5 9 Data Loss (major) 5 | . . . . . . . . . . . . . . 5 Alerts 7 | . . . . . . . . . . . . . 2 5 Misdirections 23 | . . . . . . . . . . . . . 1 22 Weapon Failures 19 | . . . . . . . . . . . . . . 19 Overload Shots . | . . . . . . . . . . . . . . . Overflow Damage 3109 | . . . . 166 51 . . 134 . 3 46 . 2057 652 Projectiles 790 | . . . . . . . . . . . . . 790 . Explosions 217 | . . . . 166 51 . . . . . . . . . Melee 2102 | . . . . . . . . 134 . 3 46 . 1267 652 Knockbacks 1 | . . . . . 1 . . . . . . . . . Impact 1 | . . . . . 1 . . . . . . . . . Kinetic . | . . . . . . . . . . . . . . . Secondary . | . . . . . . . . . . . . . . . Self-Inflicted Damage 189 | . . . . 150 39 . . . . . . . . . Shots 3 | . . . . 2 1 . . . . . . . . . Rammed 6 | . . . . 3 3 . . . . . . . . . Targets Rammed 7 | . . . . 3 3 . . . . . . . . 1 Kicked 1 | . . . . . . . . . . . . . . 1 Crushed . | . . . . . . . . . . . . . . . Highest Temperature 251 | . 12 . . 42 5 148 151 . . 96 1 . 251 199 Average Temperature 65 | . 5 . . 21 5 75 100 . . 39 1 . 86 104 Received Heat Transfer 1350 | . . . . 261 132 . . . . 99 . 9 183 666 Siege Activations . | . . . . . . . . . . . . . . . Martial Activations . | . . . . . . . . . . . . . . . Shielding Activations . | . . . . . . . . . . . . . . . Robots Disrupted . | . . . . . . . . . . . . . . . Combat Hostiles . | . . . . . . . . . . . . . . . Robots Corrupted . | . . . . . . . . . . . . . . . Combat Hostiles . | . . . . . . . . . . . . . . . Parts Fried . | . . . . . . . . . . . . . . . Impact Corruptions . | . . . . . . . . . . . . . . . Robots Melted . | . . . . . . . . . . . . . . . Combat Hostiles . | . . . . . . . . . . . . . . . Parts Melted 1 | . . . . . . . . . . . . . . 1 Heat Transferred 175 | . 175 . . . . . . . . . . . . . Parts Sabotaged 2 | . . . . . . . . . . . . . . 2 Parts Stolen . | . . . . . . . . . . . . . . . Parts Stripped . | . . . . . . . . . . . . . . . Power Chain Reactions 1 | . . . . . . . . . . . . . . 1 Alert | -11 -10 -10 -7 -5 -4 -4 -4 -4 -3 -3 -3 -2 -2 -2 ------- Run | Yrd Mat Sub Scr Fac Fac Upp Upp Zhi Pro Res Qua Res Tes Frg Maximum Alert Level 4 | . . . . 1 2 . . . . 1 1 1 2 4 Low Security (%) 18 | 100 100 . . 54 42 . . . . . 23 14 24 . Level 1 31 | . . . . 45 17 . . . . 100 76 85 34 11 Level 2 26 | . . . . . 40 . . . . . . . 41 27 Level 3 11 | . . . . . . . . . . . . . . 27 Level 4 13 | . . . . . . . . . . . . . . 32 Level 5 . | . . . . . . . . . . . . . . . High Security . | . . . . . . . . . . . . . . . Max Security . | . . . . . . . . . . . . . . . Peak Influence 1479 | . 10 . . 337 519 . . . . 374 361 233 647 1479 Initial 359 | . . . . . 147 . . . . 300 190 197 115 359 Average 535 | . 1 . . 140 306 . . . . 306 259 212 367 894 Influence Increases 5453 | . 17 . . 484 657 75 . 5 . 599 301 69 1260 1986 Destroy 0b10 Robot/C 1780 | . . . . 80 200 . . . . . . . 580 920 Destroy 0b10 Robot/NC 195 | . 15 . . 25 . . . 5 . 5 20 . 45 80 Destroy Leader 222 | . 2 . . 12 30 . . . . . 2 . 66 110 Allied During Kill 139 | . . . . . 3 . . . . . . . . 136 Successful Hack 153 | . . . . 32 10 . . . . 12 12 48 21 18 Select Force Hacks 200 | . . . . . . . . . . . . . . 200 Disable Machine 450 | . . . . 180 30 . . . . . 75 . 105 60 Anti-Garrison Action 200 | . . . . . . . . . . . . . 200 . Destroy Structure 359 | . . . . 80 54 . . . . 12 12 6 123 72 Advance Influence 300 | . . . . . . . . . . 300 . . . . Partial Spotted 195 | . . . . . . . . . . 60 30 15 15 75 Lose Combat Pursuer 1260 | . . . . 75 330 75 . . . 210 150 . 105 315 Influence Decreases 3974 | . 17 . . 182 475 330 164 70 . 260 289 214 827 1146 Entered New Map 1118 | . . . . . 155 180 44 65 . . 149 154 91 280 Time Decay 1966 | . 17 . . 112 190 130 120 5 . 130 140 50 486 586 Search Patrol Dispatched 100 | . . . . . . . . . . 100 . . . . Lost Part 520 | . . . . 70 90 20 . . . 30 . 10 100 200 Lost Ally 120 | . . . . . 40 . . . . . . . . 80 Purge Threat 150 | . . . . . . . . . . . . . 150 . Squads Dispatched 37 | . 2 . . 2 6 . . . . 3 2 4 7 11 Investigation 16 | . 2 . . 1 2 . . . . . . 3 1 7 Extermination 8 | . . . . . 1 . . . . 1 1 . 4 1 Reinforcement 13 | . . . . 1 3 . . . . 2 1 1 2 3 Assault . | . . . . . . . . . . . . . . . Garrison . | . . . . . . . . . . . . . . . Intercept . | . . . . . . . . . . . . . . . Searches Triggered 1 | . . . . . . . . . . 1 . . . . Construction Impeded . | . . . . . . . . . . . . . . . Haulers Reinforced 3 | . . . . . . . . . . 1 1 . 1 . Active Scanning Responses . | . . . . . . . . . . . . . . . Cargo Convoy Interrupts . | . . . . . . . . . . . . . . . Stealth | -11 -10 -10 -7 -5 -4 -4 -4 -4 -3 -3 -3 -2 -2 -2 --------- Run | Yrd Mat Sub Scr Fac Fac Upp Upp Zhi Pro Res Qua Res Tes Frg Distress Signals 18 | . 1 . . 1 2 . . . . 1 . . 2 11 Communications Jammed 5 | . . . . . . . . . . . . . 4 1 Distress Signals 5 | . . . . . . . . . . . . . 4 1 Times Spotted 347 | . 6 . . 19 35 10 . . 3 28 24 4 43 175 Peak Tracking Total 21 | . 4 . . 10 15 5 . . 3 17 12 5 7 21 Tactical Retreats 34 | . . . . 2 7 3 . . . 3 3 . 4 12 Traps | -11 -10 -10 -7 -5 -4 -4 -4 -4 -3 -3 -3 -2 -2 -2 ------- Run | Yrd Mat Sub Scr Fac Fac Upp Upp Zhi Pro Res Qua Res Tes Frg Traps Triggered 4 | . . . . 1 . . . . . 2 . . . 1 Indirectly . | . . . . . . . . . . . . . . . Trap Hack Attempts . | . . . . . . . . . . . . . . . Triggered . | . . . . . . . . . . . . . . . Disarmed . | . . . . . . . . . . . . . . . Reprogrammed . | . . . . . . . . . . . . . . . Reused . | . . . . . . . . . . . . . . . Traps Extracted . | . . . . . . . . . . . . . . . Installed . | . . . . . . . . . . . . . . . Triggered . | . . . . . . . . . . . . . . . Machines | -11 -10 -10 -7 -5 -4 -4 -4 -4 -3 -3 -3 -2 -2 -2 ---------- Run | Yrd Mat Sub Scr Fac Fac Upp Upp Zhi Pro Res Qua Res Tes Frg Machines Disabled 31 | . . . . 12 2 . . . . . 5 . 7 5 Max in Single Turn 3 | . . . . 3 2 . . . . . 1 . 1 1 Garrison Access 1 | . . . . . . . . . . . . . 1 . Machines Repaired . | . . . . . . . . . . . . . . . Machines Dismantled . | . . . . . . . . . . . . . . . Machines Sabotaged . | . . . . . . . . . . . . . . . Overloaded Fab Kills 4 | . . . . . . . . . . . . . . 4 Hacking | -11 -10 -10 -7 -5 -4 -4 -4 -4 -3 -3 -3 -2 -2 -2 --------- Run | Yrd Mat Sub Scr Fac Fac Upp Upp Zhi Pro Res Qua Res Tes Frg Machines Accessed 38 | . 1 . . 2 3 1 1 4 . 3 3 4 6 10 Terminals 15 | . 1 . . . 1 . . . . 1 2 3 4 3 Fabricators 5 | . . . . 1 . . . . . . . . . 4 Repair Stations . | . . . . . . . . . . . . . . . Recycling Units 6 | . . . . 1 1 . . . . . . 1 . 3 Scanalyzers 5 | . . . . . 1 . . . . 2 1 . 1 . Garrison Access 1 | . . . . . . . . . . . . . 1 . Total Hacks 98 | . 2 . . 4 7 1 1 17 . 12 7 8 13 26 Successful 50 | . . . . 3 4 1 1 17 . 3 5 3 3 10 Failed 48 | . 2 . . 1 3 . . . . 9 2 5 10 16 Catastrophic 12 | . . . . . 1 . . . . 2 1 2 2 4 Database Lockouts . | . . . . . . . . . . . . . . . Manual 50 | . 2 . . 3 3 . . . . . 5 3 8 26 Terminals 40 | . 2 . . . 3 . . . . 4 6 7 10 8 Fabricators 16 | . . . . 3 . . . . . . . . . 13 Repair Stations . | . . . . . . . . . . . . . . . Recycling Units 8 | . . . . 1 1 . . . . . . 1 . 5 Scanalyzers 13 | . . . . . 3 . . . . 8 1 . 1 . Garrison Access 2 | . . . . . . . . . . . . . 2 . Terminal Hacks 25 | . . . . . 1 1 1 17 . 1 1 2 1 . Record 5 | . . . . . . . . 5 . . . . . . Part Schematic 4 | . . . . . . . . 4 . . . . . . Robot Analysis 4 | . . . . . . . . 4 . . . . . . Prototype ID Bank 5 | . . . . . . . . 4 . . 1 . . . Open Door 3 | . . . . . . 1 1 . . 1 . . . . Level Access Points 1 | . . . . . . . . . . . . 1 . . Branch Access Points 1 | . . . . . . . . . . . . 1 . . Unreport Threat 1 | . . . . . . . . . . . . . 1 . Zone Layout 1 | . . . . . 1 . . . . . . . . . Fabricator Hacks 1 | . . . . 1 . . . . . . . . . . Build 1 | . . . . 1 . . . . . . . . . . Repair Station Hacks . | . . . . . . . . . . . . . . . Recycling Unit Hacks . | . . . . . . . . . . . . . . . Scanalyzer 4 | . . . . . 1 . . . . 2 . . 1 . Retrieve Study 4 | . . . . . 1 . . . . 2 . . 1 . Garrison Access Hacks . | . . . . . . . . . . . . . . . Unauthorized Hacks 20 | . . . . 2 2 . . . . . 4 1 1 10 Terminals 8 | . . . . . 1 . . . . . 4 . . 3 Track 2 | . . . . . . . . . . . 1 . . 1 Botnet 4 | . . . . . 1 . . . . . 2 . . 1 Disrupt 2 | . . . . . . . . . . . 1 . . 1 Fabricators 5 | . . . . 1 . . . . . . . . . 4 Fabnet 1 | . . . . 1 . . . . . . . . . . Overload 4 | . . . . . . . . . . . . . . 4 Repair Stations . | . . . . . . . . . . . . . . . Recycling Units 6 | . . . . 1 1 . . . . . . 1 . 3 Fedlink 5 | . . . . 1 1 . . . . . . 1 . 2 Scrapoids 1 | . . . . . . . . . . . . . . 1 Scanalyzers . | . . . . . . . . . . . . . . . Garrison Access 1 | . . . . . . . . . . . . . 1 . Jam 1 | . . . . . . . . . . . . . 1 . Data Cores Recovered 4 | . 1 . . . . . . . . . 2 . . 1 Used 2 | . . . . . . . . . . . 1 . . 1 Hacking Detections 27 | . 1 . . 1 2 . . . . 3 3 3 6 8 Full Trace Events 4 | . 1 . . . 1 . . . . . . 2 . . Feedback Events . | . . . . . . . . . . . . . . . Feedback Blocked . | . . . . . . . . . . . . . . . Robot Schematics Acquired 4 | . . . . . . . . . . . . . 4 . Robots Built . | . . . . . . . . . . . . . . . Authchips . | . . . . . . . . . . . . . . . Time . | . . . . . . . . . . . . . . . Total Robot Build Rating . | . . . . . . . . . . . . . . . Part Schematics Acquired 16 | . . . . . . . . 4 . . 1 . 11 . Parts Built 2 | . . . . 2 . . . . . . . . . . Authchips . | . . . . . . . . . . . . . . . Time 64 | . . . . 64 . . . . . . . . . . Total Part Build Rating 16 | . . . . 16 . . . . . . . . . . Part Studies Acquired 4 | . . . . . 1 . . . . 2 . . 1 . Parts Repaired . | . . . . . . . . . . . . . . . Time . | . . . . . . . . . . . . . . . Parts Recycled . | . . . . . . . . . . . . . . . Recycled Matter . | . . . . . . . . . . . . . . . Retrieved Matter . | . . . . . . . . . . . . . . . Retrieved Components . | . . . . . . . . . . . . . . . Parts Scanalyzed . | . . . . . . . . . . . . . . . Part Schematics Acquired . | . . . . . . . . . . . . . . . Parts Damaged . | . . . . . . . . . . . . . . . Bothacking | -11 -10 -10 -7 -5 -4 -4 -4 -4 -3 -3 -3 -2 -2 -2 ------------ Run | Yrd Mat Sub Scr Fac Fac Upp Upp Zhi Pro Res Qua Res Tes Frg Used RIF Installer . | . . . . . . . . . . . . . . . Robots Hacked 3 | . . . . . 3 . . . . . . . . . Non-combat . | . . . . . . . . . . . . . . . Combat 3 | . . . . . 3 . . . . . . . . . Robot Hacks Applied . | . . . . . . . . . . . . . . . Relay Couplers Released . | . . . . . . . . . . . . . . . Fabnet Peak Effective % 3 | . . . . . 3 3 3 3 1 1 1 . . . Autooverrided 3 | . . . . . 3 . . . . . . . . . Robots Rewired . | . . . . . . . . . . . . . . . Allies Hacked 1 | . . . . . . . . . . . . . . 1 Hacks Repelled . | . . . . . . . . . . . . . . . Allies | -11 -10 -10 -7 -5 -4 -4 -4 -4 -3 -3 -3 -2 -2 -2 -------- Run | Yrd Mat Sub Scr Fac Fac Upp Upp Zhi Pro Res Qua Res Tes Frg Total Allies 8 | . . . . . 3 . . . . . . . . 5 Largest Group 5 | . . . . . 1 . . . . . . . . 5 Highest-Rated Group 326 | . . . . . 56 . . . . . . . . 326 Highest-Rated Ally 67 | . . . . . 56 . . . . . . . . 67 Total Orders 1 | . . . . . . . . . . . . . . 1 GUARD 1 | . . . . . . . . . . . . . . 1 Ally Attacks 98 | . . . . . 8 . . . . . . . . 90 Total Damage 2614 | . . . . . 208 . . . . . . . . 2406 Kills 6 | . . . . . 1 . . . . . . . . 5 Allies Corrupted . | . . . . . . . . . . . . . . . Allies Melted 2 | . . . . . . . . . . . . . . 2 Intel | -11 -10 -10 -7 -5 -4 -4 -4 -4 -3 -3 -3 -2 -2 -2 ------- Run | Yrd Mat Sub Scr Fac Fac Upp Upp Zhi Pro Res Qua Res Tes Frg Active Infowar (turns) 2600 | . . . . . . 179 259 118 90 236 . . 290 1428 Optics 1267 | . . . . . . . . . . . . . . 1267 Cloaking 882 | . . . . . . 179 259 118 90 236 . . . . Jamming 451 | . . . . . . . . . . . . . 290 161 Robot Analysis Total 4 | . . . . . . . . 4 . . . . . . Derelict Logs Recovered 5 | . . 1 . . . 2 2 . . . . . . . Drone Launches . | . . . . . . . . . . . . . . . Drone Recoveries . | . . . . . . . . . . . . . . . Exploration | -11 -10 -10 -7 -5 -4 -4 -4 -4 -3 -3 -3 -2 -2 -2 ------------- Run | Yrd Mat Sub Scr Fac Fac Upp Upp Zhi Pro Res Qua Res Tes Frg Turns Passed 5733 | 18 121 232 193 264 381 274 259 118 90 277 288 107 1274 1837 Spaces Moved 8115 | 30 166 143 377 444 585 483 464 208 260 702 716 336 1748 1453 Core 1652 | 30 166 143 377 444 290 121 . . . . . . . 81 Treads . | . . . . . . . . . . . . . . . Legs 759 | . . . . . . . . . . . . . . 759 Wheels . | . . . . . . . . . . . . . . . Hover 1072 | . . . . . 92 . . . . . . . 554 426 Flight 4632 | . . . . . 203 362 464 208 260 702 716 336 1194 187 Fastest Speed 15 | 50 50 50 50 50 40 49 49 30 30 15 26 21 21 32 Average Speed 45 | 50 50 50 50 50 50 49 49 38 30 27 27 28 34 75 Slowest Speed 170 | 50 50 50 50 50 80 100 49 49 30 30 29 29 111 170 Overloaded Moves 58 | . . . . . . . . . . 28 . 27 3 . Propulsion Burnouts . | . . . . . . . . . . . . . . . Robots Hopped 45 | . . . . . 4 . 2 . . 16 6 4 12 1 Potential Cave-ins 1 | . . . . . . . . . . . . . . 1 Cave-ins Triggered . | . . . . . . . . . . . . . . . Teleports 1 | . . . . . . . . . . . . . . 1 Exploration Rate (%) 39 | 3 32 19 39 13 21 67 67 60 45 26 81 12 69 43 Regions Visited 14 Branch Regions 9 Pre-discovered Areas 7 | . . 1 . . 1 1 1 3 . . . . . . Known Exits Taken 3 | . . . . . . . . . . 1 . 1 1 . Unknown Exits Taken 11 | 1 1 1 1 1 1 1 1 1 1 . 1 . . . Scrap Searched 7 | . . . 4 . . . 2 . 1 . . . . . Spaces Dug 42 | . . . . . 8 . . . . 6 6 2 12 8 Terrain Destroyed 137 | . . . . 38 28 . . . . 6 6 2 39 18 Melee 42 | . . . . . 8 . . . . 6 6 2 12 8 Projectile 37 | . . . . . . . . . . . . . 27 10 AOE 58 | . . . . 38 20 . . . . . . . . . Terrain Rammed . | . . . . . . . . . . . . . . . Walls Destroyed . | . . . . . . . . . . . . . . . Machines Disabled . | . . . . . . . . . . . . . . . Actions | -11 -10 -10 -7 -5 -4 -4 -4 -4 -3 -3 -3 -2 -2 -2 --------- Run | Yrd Mat Sub Scr Fac Fac Upp Upp Zhi Pro Res Qua Res Tes Frg Total 9486 | 31 193 302 381 476 631 515 490 235 268 756 782 337 2207 1882 Wait 614 | . 14 160 . 1 1 21 21 . 6 30 13 . 215 132 Move 8017 | 29 165 142 376 443 577 482 459 207 259 674 703 327 1723 1451 Hop 39 | . . . . . 3 . 2 . . 11 6 4 12 1 Pick Up 41 | . 6 . 3 3 5 2 . 2 . 3 . . 10 7 Fast Attach 180 | 2 1 . . 9 14 6 4 10 . 10 18 3 55 48 Attach 28 | . 1 . . 2 6 2 . . . 3 . . 6 8 Detach 12 | . . . . 1 2 . . . . . 2 . 3 4 Swap 27 | . . . . . . . . . . 1 1 1 6 18 Drop 145 | . 1 . 2 8 3 2 2 8 . 9 21 . 50 39 Fire 144 | . 5 . . 5 4 . . . . . . . 4 126 Melee 226 | . . . . 1 13 . 2 8 3 11 18 2 123 45 Ram 6 | . . . . 3 3 . . . . . . . . . Kick 1 | . . . . . . . . . . . . . . 1 Crush . | . . . . . . . . . . . . . . . Escape Stasis 6 | . . . . . . . . . . 4 . . . 2 Rewire . | . . . . . . . . . . . . . . . Trap . | . . . . . . . . . . . . . . . Miscellaneous . | . . . . . . . . . . . . . . . Route ------- -11/Scrapyard -10/Materials -10/Subcaves -7/Scraptown -5/Factory -4/Factory -4/Upper Caves -4/Upper Caves (discovered 2 exits: *Res / *Zhi) -4/Zhirov -3/Proximity Caves -3/Research (discovered 2 exits: *Res / *Qua) -3/Quarantine -2/Research (discovered 5 exits: *Acc x3 / *Tes x2) -2/Testing (discovered 2 exits: [*Sec] / *Frg) -2/Protoforge History --------- Turn | Location | Event 9 | -11/Scrapyard | Discovered new exit (range 14) 19 | -11/Scrapyard | Entered Materials 20 | -10/Materials | Met a group of wandering Federalists 127 | -10/Materials | Discovered new exit (range 7) 140 | -10/Materials | Entered Subcaves 140 | -10/Subcaves | Accompanied by 3 allies 141 | -10/Subcaves | Continued accompanying wandering Federalists (3) 141 | -10/Subcaves | Approached by a straggling Scientist 300 | -10/Subcaves | Build established: Mutant 359 | -10/Subcaves | Wandering Federalist uncovered a shortcut to Scraptown 360 | -10/Subcaves | Learned location of Mines (-8) 372 | -10/Subcaves | Entered Scraptown 408 | -7/Scraptown | Visited Bundlers 439 | -7/Scraptown | Visited Cyclists 446 | -7/Scraptown | Visited Red Mages 461 | -7/Scraptown | Visited UFD Registry 461 | -7/Scraptown | Registered with UFD as "Shortblaster" 492 | -7/Scraptown | Visited Scrap Suit Storage 499 | -7/Scraptown | Visited Scrapoid Research Area 516 | -7/Scraptown | Met Optimus 516 | -7/Scraptown | Accepted into 0bPrime 562 | -7/Scraptown | Discovered new exit (range 5) 565 | -7/Scraptown | Entered Factory 565 | -5/Factory | Evolved 10 slots: Power x1, Propulsion x4, Utility x5 614 | -5/Factory | Loaded intel: 8 recycling unit locations 644 | -5/Factory | Fabricated Quantum Rifle? 704 | -5/Factory | Discovered new exit (range 11) 768 | -5/Factory | Lost 3 parts (3n) 807 | -5/Factory | Core integrity fell below 50% 822 | -5/Factory | Lost 4 parts (2n2w) 829 | -5/Factory | Entered another Factory area 829 | -4/Factory | Evolved 2 slots: Propulsion x2 854 | -4/Factory | Found Quantum Capacitor 1015 | -4/Factory | Destroyed 9 combat bots 1015 | -4/Factory | Spotted B-86 Titan 1164 | -4/Factory | Found Prototype Hackware 1164 | -4/Factory | Identified Exp. System Shield 1173 | -4/Factory | Lost 3 parts (1p1u1w) 1185 | -4/Factory | Discovered new exit (range 7) 1200 | -4/Factory | Loaded intel: 8 recycling unit locations 1200 | -4/Factory | Learned location of Protoforge (-2) 1210 | -4/Factory | Entered Upper Caves 1211 | -4/Upper Caves | Encountered a Warlord checkpoint 1242 | -4/Upper Caves | Lost 3 parts (1p1n1u) 1381 | -4/Upper Caves | Learned location of 1 exit from Research 1464 | -4/Upper Caves | Build established: Hacker-Mutant 1475 | -4/Upper Caves | Learned location of Testing (-2) 1480 | -4/Upper Caves | Discovered new exit (range 7) 1484 | -4/Upper Caves | Entered another Upper Caves area 1491 | -4/Upper Caves | Discovered new exit (range 11) 1552 | -4/Upper Caves | Learned Research emergency access door positions 1741 | -4/Upper Caves | Discovered new exit (range 3) 1743 | -4/Upper Caves | Entered Zhirov 1743 | -4/Zhirov | Discovered new exit (range 4) 1752 | -4/Zhirov | Met Zhirov 1761 | -4/Zhirov | Learned location of Quarantine (-3) 1761 | -4/Zhirov | Learned location of Command (-1) 1766 | -4/Zhirov | Zhirov requested help retrieving the SGEMP Prototype 1774 | -4/Zhirov | Found Alien Artifact 1774 | -4/Zhirov | Identified Integrated Dissipator 1774 | -4/Zhirov | Installed Integrated Dissipator, increased core heat dissipation (+20) 1785 | -4/Zhirov | Found Alien Artifact 1861 | -4/Zhirov | Entered Proximity Caves 1866 | -3/Proximity Caves | Spotted B-86 Titan 1875 | -3/Proximity Caves | Spotter reported a threat 1875 | -3/Proximity Caves | Spotter reported a threat 1945 | -3/Proximity Caves | Discovered new exit (range 13) 1951 | -3/Proximity Caves | Entered Research 1951 | -3/Research | Evolved 2 slots: Utility x2 1952 | -3/Research | Identified exit to Quarantine 1994 | -3/Research | Found Prototype Device 1994 | -3/Research | Identified Exp. Thermal Shield 1998 | -3/Research | Found Prototype Device 1998 | -3/Research | Identified Exp. Focal Shield 2096 | -3/Research | Build established: Derelict-Sprinter 2201 | -3/Research | Search patrols dispatched 2219 | -3/Research | Lost 3 parts (3u) 2223 | -3/Research | Discovered new exit (range 7) 2228 | -3/Research | Entered Quarantine 2245 | -3/Quarantine | Found Alien Energy Cannon 2245 | -3/Quarantine | Identified Core Cannon 2343 | -3/Quarantine | Cryocooling Duct disabled 2353 | -3/Quarantine | Cryocooling Duct disabled 2358 | -3/Quarantine | Ambient heat levels rising (+20) 2358 | -3/Quarantine | Non-combat units ordered to evacuate 2362 | -3/Quarantine | Discovered new exit (range 8) 2368 | -3/Quarantine | Ambient heat levels rising (+20) 2368 | -3/Quarantine | Combat units ordered to evacuate 2376 | -3/Quarantine | Found Alien Slashing Weapon 2376 | -3/Quarantine | Identified Sigix Broadsword 2441 | -3/Quarantine | Found Alien Reactor 2441 | -3/Quarantine | Identified Matter Drive 2465 | -3/Quarantine | Build established: Hacker-Sprinter 2468 | -3/Quarantine | Quarantine Guard activated 2492 | -3/Quarantine | Spotted Quarantine Guard 2498 | -3/Quarantine | Spotted Quarantine Guard 2499 | -3/Quarantine | Spotted Quarantine Guard 2499 | -3/Quarantine | Spotted Quarantine Guard 2501 | -3/Quarantine | Spotted Quarantine Guard 2502 | -3/Quarantine | Spotted Quarantine Guard 2503 | -3/Quarantine | Spotted Quarantine Guard 2503 | -3/Quarantine | Spotted Quarantine Guard 2503 | -3/Quarantine | Spotted Quarantine Guard 2504 | -3/Quarantine | Spotted Quarantine Guard 2516 | -3/Quarantine | Entered Research 2516 | -2/Research | Evolved 2 slots: Utility x2 2532 | -2/Research | Identified exit to Access 2571 | -2/Research | Identified exit to Testing 2594 | -2/Research | Loaded intel: 5 recycling unit locations 2612 | -2/Research | Spotted B-90 Cyclops 2623 | -2/Research | Entered Testing 2641 | -2/Testing | Found Prototype Processor 2641 | -2/Testing | Identified Exp. Core Analyzer 2644 | -2/Testing | Found Exp. Thermal Shield 2664 | -2/Testing | Found Prototype Device 2664 | -2/Testing | Identified AEGIS Remote Shield 2741 | -2/Testing | Spotted Striker 2759 | -2/Testing | Spotted Striker 2760 | -2/Testing | Spotted Alpha 7 2849 | -2/Testing | Destroyed Striker 2905 | -2/Testing | Destroyed Alpha 7 2908 | -2/Testing | Found Prototype Processor 2908 | -2/Testing | Identified Exp. Target Analyzer 2924 | -2/Testing | Found Prototype Processor 2924 | -2/Testing | Identified Exp. Melee Analysis Suite 2926 | -2/Testing | Found Exp. Melee Analysis Suite 3026 | -2/Testing | Destroyed Striker 3092 | -2/Testing | Spotted Alpha 7 3129 | -2/Testing | Found Prototype Processor 3129 | -2/Testing | Identified Exp. Targeting Computer 3175 | -2/Testing | Destroyed Alpha 7 3266 | -2/Testing | Stole the SGEMP Prototype 3332 | -2/Testing | Found Prototype Device 3332 | -2/Testing | Identified Exp. Transmission Jammer 3654 | -2/Testing | System corruption reached 10% 3766 | -2/Testing | Found Prototype Ballistic Gun 3766 | -2/Testing | Identified Hyp. Multirail 3826 | -2/Testing | Build established: Scavenger-Sprinter 3867 | -2/Testing | Spotted Fortress 3892 | -2/Testing | Discovered new exit (range 6) 3892 | -2/Testing | Discovered new exit (range 6) 3894 | -2/Testing | Identified exit to Protoforge 3897 | -2/Testing | Entered Protoforge 3915 | -2/Protoforge | Spotted Hotshot 3949 | -2/Protoforge | Spotted Hotshot 3952 | -2/Protoforge | Spotted Hotshot 3955 | -2/Protoforge | Superfortress began startup sequence 3968 | -2/Protoforge | Destroyed Hotshot 4083 | -2/Protoforge | Destroyed Hotshot 4107 | -2/Protoforge | Destroyed Hotshot 4140 | -2/Protoforge | Spotted Hotshot 4145 | -2/Protoforge | Spotted Hotshot 4147 | -2/Protoforge | Spotted Hotshot 4147 | -2/Protoforge | Spotted Hotshot 4147 | -2/Protoforge | Spotted Hotshot 4179 | -2/Protoforge | Lost 5 parts (1p3n1u) 4187 | -2/Protoforge | Spotted B-90 Cyclops 4205 | -2/Protoforge | Spotted Hotshot 4205 | -2/Protoforge | Spotted Hotshot 4205 | -2/Protoforge | Spotted Hotshot 4218 | -2/Protoforge | Spotted AP7-3 4218 | -2/Protoforge | Spotted AP7-3 4222 | -2/Protoforge | Identified Transdimensional Reconstructor 4222 | -2/Protoforge | Warped through subspace 4222 | -2/Protoforge | Spotted EXE-6 4222 | -2/Protoforge | Spotted EXE-6 4227 | -2/Protoforge | Spotted SKR-2 4231 | -2/Protoforge | Spotted SKR-2 4231 | -2/Protoforge | Spotted SKR-2 4249 | -2/Protoforge | Core integrity fell below 50% 4251 | -2/Protoforge | Spotted EXE-6 4251 | -2/Protoforge | Spotted EXE-6 4289 | -2/Protoforge | Lost 9 parts (5n3u1w) 4290 | -2/Protoforge | System corruption reached 30% 4333 | -2/Protoforge | UFD initiated attack on Protoforge (Readiness: Adequate) 4333 | -2/Protoforge | Loaded intel: 3 recycling unit locations 4363 | -2/Protoforge | Scrapoid reinforcements arrived 4369 | -2/Protoforge | Optimus greeted in Protoforge 4371 | -2/Protoforge | Found Prototype Device 4371 | -2/Protoforge | Identified Exp. Kinecellerator 4400 | -2/Protoforge | Forge Plexus network access discovered 4401 | -2/Protoforge | Lost 10 allies 4408 | -2/Protoforge | Found Cep. XC Strikerail 4426 | -2/Protoforge | Spotted Decapitator 4431 | -2/Protoforge | Found Cep. XC Strikerail 4446 | -2/Protoforge | Found Cep. XC Strikerail 4454 | -2/Protoforge | Found Exp. Core Analyzer 4456 | -2/Protoforge | Found Exp. Core Analyzer 4457 | -2/Protoforge | Lost 6 allies 4465 | -2/Protoforge | Met 7R-MNS 4468 | -2/Protoforge | Found Exp. Kinecellerator 4520 | -2/Protoforge | Found 0bPrime Scrap Suit 4557 | -2/Protoforge | Lost 4 allies 4570 | -2/Protoforge | Spotted Striker 4572 | -2/Protoforge | Spotted Striker 4575 | -2/Protoforge | Destroyed Striker 4585 | -2/Protoforge | Allies destroyed Striker 4586 | -2/Protoforge | Spotted Overlord 4597 | -2/Protoforge | Build established: Scavenger-Mutant 4604 | -2/Protoforge | Allies destroyed Overlord 4628 | -2/Protoforge | P-80 Master assimilated allied 02F19-D 4628 | -2/Protoforge | Found Centrium Heavy Armor Plating 4644 | -2/Protoforge | Core integrity fell below 20% 4674 | -2/Protoforge | Spotted Striker 4675 | -2/Protoforge | Destroyed 7 combat bots 4675 | -2/Protoforge | Spotted Striker 4691 | -2/Protoforge | Spotted Striker 4691 | -2/Protoforge | Spotted Executioner 4708 | -2/Protoforge | Destroyed Striker 4766 | -2/Protoforge | Spotted Striker 4777 | -2/Protoforge | Lost 3 parts (1n2u) 4785 | -2/Protoforge | Lost 19 allies 4808 | -2/Protoforge | Spotted Striker 4953 | -2/Protoforge | Spotted Executioner 4959 | -2/Protoforge | P-80 Master assimilated allied 47-IWM(j) 4966 | -2/Protoforge | Destroyed Executioner 4982 | -2/Protoforge | Found 0bPrime Scrap Suit 4996 | -2/Protoforge | Lost 4 allies 5022 | -2/Protoforge | Spotted Executioner 5022 | -2/Protoforge | Spotted Striker 5030 | -2/Protoforge | Spotted Executioner 5036 | -2/Protoforge | Spotted Executioner 5092 | -2/Protoforge | Found Exp. Core Analyzer 5102 | -2/Protoforge | Lost 7 allies 5137 | -2/Protoforge | Found 0bPrime Scrap Suit 5169 | -2/Protoforge | Spotted Striker 5177 | -2/Protoforge | Build established: Scavenger-Scrapper 5205 | -2/Protoforge | Spotted Hotshot 5208 | -2/Protoforge | Spotted Decapitator 5208 | -2/Protoforge | Spotted Decapitator 5208 | -2/Protoforge | Spotted Hotshot 5210 | -2/Protoforge | Destroyed Decapitator 5210 | -2/Protoforge | Spotted Hotshot 5217 | -2/Protoforge | Destroyed Decapitator 5219 | -2/Protoforge | Spotted Hotshot 5234 | -2/Protoforge | Spotted Striker 5234 | -2/Protoforge | Spotted Striker 5234 | -2/Protoforge | Spotted Striker 5236 | -2/Protoforge | Spotted Striker 5236 | -2/Protoforge | Spotted Striker 5238 | -2/Protoforge | Destroyed Striker 5238 | -2/Protoforge | Spotted Striker 5247 | -2/Protoforge | Destroyed Striker 5253 | -2/Protoforge | Destroyed Striker 5268 | -2/Protoforge | Spotted Hotshot 5279 | -2/Protoforge | Spotted Hotshot 5279 | -2/Protoforge | Spotted Hotshot 5283 | -2/Protoforge | Spotted EXE-6 5287 | -2/Protoforge | Destroyed Hotshot 5300 | -2/Protoforge | Spotted Striker 5302 | -2/Protoforge | Spotted Striker 5330 | -2/Protoforge | Spotted Striker 5333 | -2/Protoforge | Spotted Striker 5351 | -2/Protoforge | Triborg destroyed during the operation 5351 | -2/Protoforge | Optimus emerged from Triborg 5353 | -2/Protoforge | Spotted Striker 5354 | -2/Protoforge | Destroyed Striker 5355 | -2/Protoforge | Spotted Striker 5373 | -2/Protoforge | Spotted Hotshot 5374 | -2/Protoforge | Optimus destroyed during the operation 5377 | -2/Protoforge | Destroyed Striker 5383 | -2/Protoforge | Spotted Hotshot 5383 | -2/Protoforge | Destroyed Striker 5383 | -2/Protoforge | UFD reported confirmed Drillbomb installation 5384 | -2/Protoforge | Spotted Hotshot 5386 | -2/Protoforge | Spotted Hotshot 5395 | -2/Protoforge | Destroyed Hotshot 5405 | -2/Protoforge | Lost 30 allies 5432 | -2/Protoforge | Spotted Executioner 5479 | -2/Protoforge | Found Exp. Targeting Computer 5485 | -2/Protoforge | Spotted Striker 5488 | -2/Protoforge | Spotted Striker 5496 | -2/Protoforge | Destroyed Striker 5496 | -2/Protoforge | Destroyed Striker 5633 | -2/Protoforge | Spotted Executioner 5677 | -2/Protoforge | Spotted Striker 5681 | -2/Protoforge | Spotted Striker 5681 | -2/Protoforge | Spotted Striker 5682 | -2/Protoforge | Spotted Striker 5683 | -2/Protoforge | Lost 9 allies 5683 | -2/Protoforge | Spotted Striker 5683 | -2/Protoforge | Spotted Executioner 5734 | -2/Protoforge | Destroyed by Striker with Plasma Lance Last Messages --------------- Plating. 05710_ N-04 Retriever collects Ovr. Coil Gun. 05712_ N-04 Retriever collects Plasma Lance. 05712_ N-04 Retriever collects Corrupted KE Penetrator. 05713_ 5P4ZUR76NG&DR0Y&BM GLLHOA,C 05714_ N-04 Retriever inserts Impulse Thruster Array into Forge Plexus. 05715_ N-04 Retriever inserts Centrium Light Armor Plating into Forge Plexus. 05716_ N-04 Retriever inserts Corrupted Ovr. Coil Gun into Forge Plexus. 05717_ N-04 Retriever inserts Centrium Light Armor Plating into Forge Plexus. 05718_ N-04 Retriever inserts Ovr. Medium Treads into Forge Plexus. 05729_ System corrupted: Substantial component data lost. 05729_ Slug penetrates Forge Plexus. 05730_ Acquired 10 matter. Map ----- +----------------------------------------------------+ | ??????????????????????# % "" "" """ | | ??????????????????????# """"" " " """" | | ??????????????????????# %"% " " | | ??????????????????????# % " " ""%% " | | ??????????????????????# """"" " % "" | | ??????????????????????# " "" " " | | ??????????????????????# """" " """" | | ??????????????????????# """" """"" | | ??????????????????????# " """""" | | ??????????????????????# "" " """"""" | | ??????????????????????# " n% """""""" | | ??????????????????????# " "" """"""""" | | ?????############?????# %""""" " """""""""" | | ?????############?????# "" "m " """""""""" | | ?????## ##?????# %"%"% "" """""""""" | | ?????## """ ##?????# %% "" %" """"""""""" | | ???#### """" ##?????# %"% " """"""""""" | | #### ; " " "#?????# % """"""""""" | | #####;; """ "#?##### % % """"""""""" | | ; " " # ## =# % """"""""""" | | ^ ; ; ==*#=# % % """"""""""" | | ; ; =![*#% = " """"""""""" | | ; % % !%* ==# % "" "" """"""""""" | | ;; & %% #&[% ! """"""""""" | | %% %% % %%%%%=% ! % """""""""" | | s%s&s%& %%%%%%%%%%%@K * """""""""" | | % % j %% % % %%%%%%%%%% K """""""""" | | %% %%% %%%%% %[=&%%%&#%% % """"""""" | | !%%% % % % ! %%[#=% n = % """""""" | | =*%" %% % % %%%!!#% % % %% """"""" | | !%% =[*%! % % !=![[#% % [ """""" | | !=! !!=%= % *=[% %[[[##= % [% %""""" | | ##"##;;#; " %" #[##! % % % """" | | #########%% " # ## % % % %%&%%%%" | | #???##? * # # ## %| % !%%n% %%%% | | #???## ""###### # =%&! &%% %% %%%%" | | #???## % ######### % % ! %% % %& % | | #???##""# ##????????#% % =m& %% | | ##### ## ########### " [ " %%="% | | #### #### ########### " " %""" | | ??? ????# ??#????????## " " " " % = | | ????????# ??#????????## "" " " " % | | ????????#???#????????## " " | | ????????#???#????????## " " % " " %"" | | ?????????????????????## "" " " | | ????????#???#????????## "" " | | ????????#???#????????## " " | | ????????#???#????????## "" " """""""" | | ????????#???#????????## """ " " " | | #########???####?############# ################## | +----------------------------------------------------+ Best States ------------- Heat Dissipation 107 Energy Generation 55 Energy Capacity 960 Matter Stores 300 Matter Capacity 300 Sight Range 23 Terrain Scan Density 10 Jamming Range 22 Cloak Strength 3 Power Amplification 40 Additional Mass Support 16 EM Shielding 4 Corruption Containment 12 Armor Coverage 900 Resistance: KI 30 Resistance: TH 30 Core Shielding 40 Weapon Shielding 66 Melee Speed Boost 20 Phase Shifting 15 Evasion (%) 74 Targeting Accuracy 12 Melee Accuracy 24 Target Analysis 14 Core Analysis 12 Armor Integrity Analysis 40 Recoil Reduction 2 Kinecelleration 66 Salvage Targeting 3 Offensive Hacking 10 Defensive Hacking 30 Item Schematics ----------------- Assault Drone Bay | -4/Zhirov | Free Exp. Heat Sink | -4/Zhirov | Free Exp. Optical Array | -4/Zhirov | Free Imp. Arc Thrower | -4/Zhirov | Free Exp. Energy Well | -3/Quarantine | Archive Exp. Matter Compressor | -2/Testing | Archive Particle Accelerator | -2/Testing | Archive Enh. Biometal Leg | -2/Testing | Archive Enh. Armored Heavy Treads | -2/Testing | Archive Spectral Analyzer | -2/Testing | Archive Stealth Drone Bay | -2/Testing | Archive Adv. EM Disruption Field | -2/Testing | Archive Imp. Quantum Reactor | -2/Testing | Archive Exp. Gyrokinetic Inverter | -2/Testing | Archive Exp. Melee Analysis Suite | -2/Testing | Archive Adv. Plasma Rifle | -2/Testing | Archive Robot Schematics ------------------ M-36 Artificer | -2/Testing | Archive G-67 Veteran | -2/Testing | Archive T-07 Excavator | -2/Testing | Archive A-15 Conveyor | -2/Testing | Archive Fabricated ------------ Quantum Rifle | x2 | -5/Factory | Preloaded Repaired ---------- Nothing Studied --------- Imp. Antigrav System | -4/Factory | Hacked Hvy. Shock Bomb Launcher | -3/Research | Hacked Antimatter Reactor | -3/Research | Hacked Impulse Thruster Array | -2/Testing | Hacked Alien Tech Used ----------------- Integrated Dissipator Core Cannon Sigix Broadsword Matter Drive Transdimensional Reconstructor Achievements -------------- We Are One Challenges ------------ None Game ------ Seed WeaponTimingLegs Manual? 0 Play Time 02:35:38 Cumulative 375.2 hours Start 2025.11.05 @ 12:15:53 End 2025.11.05 @ 15:14:30 Sessions 3 Manual Loads 0 Difficulty Rogue Special Mode None Game No. 336 Rogue 336 Adventurer 0 Explorer 0 Win Type - Total 3 Types 2/1/0/0/0/0/0/0/0/0 Lore% 83 Gallery% 83 Achievement% 60 Wizard Run 0 Options --------- Layout 1 ASCII 0 Keyboard 0 Movement Numpad Keybinds 0 Fullscreen 1 Font 24/Smallcaps Map View 50x35 Zoom Use 0% Tactical HUD 1 Map Filters NONE Filters NONE Steam 1 RUN: 1a195940-78a1-4e6d-a2b1-d909909fab58